Workbook

Sheet Datos del del proyecto
R1: VERSIÓN 3.0
A2: MENÚ | F2: FORMATO PARA LA PRESENTACIÓN DE PROYECTOS AMBIENTALES AÑO 2026
C4: 1. DATOS GENERALES DEL PROYECTO
D7: Nombre de la empresa
D8: Dirección de la sede
D9: Personal involucrado en el proyecto
D10: Responsable del proyecto
D17: Nombre del proyecto
D18: Fecha de inicio | K18: Fecha de terminación | S18: =DATEDIF(EOMONTH(H18,0),EOMONTH(P18,1),"M") -> 0
D19: Descripción de la problemática
D20: Descripción del proyecto
D21: Alcance
D22: Objetivo general
D23: Objetivos específicos
D26: Metas
D29: CRONOGRAMA
D30: Objetivo específico | H30: Actividades / Entregas principales | K30: Fecha inicio DD/MM/AAAA | M30: Fecha final DD/MM/AAAA | O30: Actividad clave | Q30: Nombre de la evidencia que soportará la actividad
D31: =+H23 -> 0
D34: =+H24 -> 0
D37: =+H25 -> 0

Sheet LISTA DESPLEGABLE (hidden)
A1: COMPONENTE
A2: Uso eficiente de agua
A3: Uso eficiente de energía eléctrica
A4: Uso eficiente de energía térmica
A5: Disminución de residuos peligrosos
A6: Uso eficiente de materiales
A7: Reducción de emisiones
A8: Reducción de residuos ordinarios
A9: Uso eficiente de residuos orgánicos
A10: Uso eficiente de residuos aprovechables
A11: Uso eficiente de residuos de construcción y demolición
A14: UND DE MEDIDA
A16: m³
A17: kWh
A18: kg
A19: Ton
A20: Ton CO₂eq/año
A21: Unidades
A22: L
A23: Galones

Sheet Línea Base y beneficios proy
T1: VERSIÓN 3.0
A2: MENÚ | F2: FORMATO PARA LA PRESENTACIÓN DE PROYECTOS AMBIENTALES AÑO 2026
D4: Nota: La hoja se encuentra protegida en algunas celdas. Por favor, registre manualmente los datos de su organización en los campos de color verde claro.
C5: 2. LINEA BASE Y BENEFICIOS DEL PROYECTO PRINCIPAL
D9: Componente ambiental | I9: Unidad | L9: Mes de inicio de la línea base
D14: Línea Base | E14: Mes 1 | F14: Mes 2 | G14: Mes 3 | H14: Mes 4 | I14: Mes 5 | J14: Mes 6 | K14: Mes 7 | L14: Mes 8 | M14: Mes 9 | N14: Mes 10 | O14: Mes 11 | P14: Mes 12 | Q14: Total | R14: Promedio mes | S14: Mín. | T14: Máx.
D15: Consumo o generación | Q15: =SUM(TablaLineaBase[[#This Row],[Mes 1]:[Mes 12]]) -> 0 | R15: =AVERAGE(TablaLineaBase[[#This Row],[Mes 1]:[Mes 12]]) ->  | S15: =MIN(TablaLineaBase[[#This Row],[Mes 1]:[Mes 12]]) -> 0 | T15: =MAX(TablaLineaBase[[#This Row],[Mes 1]:[Mes 12]]) -> 0
D16: Consumo o generación proyectado | E16: =IFERROR(IF($D$10="Uso eficiente de residuos orgánicos",IF(E15+$F$28<=$F$28,"",E15+$F$28),IF($D$10="Uso eficiente de residuos aprovechables",IF(E15+$F$28<=$F$28,"",E15+$F$28),IF(E15-$F$28<0,"",E15-$F$28))),"") ->  | F16: =IFERROR(IF($D$10="Uso eficiente de residuos orgánicos",IF(F15+$F$28<=$F$28,"",F15+$F$28),IF($D$10="Uso eficiente de residuos aprovechables",IF(F15+$F$28<=$F$28,"",F15+$F$28),IF(F15-$F$28<0,"",F15-$F$28))),"") ->  | Q16: =SUM(TablaLineaBase[[#This Row],[Mes 1]:[Mes 12]]) -> 0 | R16: =AVERAGE(TablaLineaBase[[#This Row],[Mes 1]:[Mes 12]]) ->  | S16: =MIN(TablaLineaBase[[#This Row],[Mes 1]:[Mes 12]]) -> 0 | T16: =MAX(TablaLineaBase[[#This Row],[Mes 1]:[Mes 12]]) -> 0
D17: Costo | Q17: =SUM(TablaLineaBase[[#This Row],[Mes 1]:[Mes 12]]) -> 0 | R17: =AVERAGE(TablaLineaBase[[#This Row],[Mes 1]:[Mes 12]]) ->  | S17: =MIN(TablaLineaBase[[#This Row],[Mes 1]:[Mes 12]]) -> 0 | T17: =MAX(TablaLineaBase[[#This Row],[Mes 1]:[Mes 12]]) -> 0
D18: Promedio consumo o generación | E18: =$R$15 ->  | F18: =$R$15 -> 
D19: Promedio proyección beneficio ambiental | E19: =+$R$16 ->  | F19: =+$R$16 -> 
D21: Máximo | E21: =$T$15 -> 0 | F21: =$T$15 -> 0 | G21: 0 | H21: 0 | I21: 0 | J21: 0 | K21: 0 | L21: 0 | M21: 0 | N21: 0 | O21: 0 | P21: 0
D22: Mínimo | E22: =$S$15 -> 0 | F22: =$S$15 -> 0 | G22: 0 | H22: 0 | I22: 0 | J22: 0 | K22: 0 | L22: 0 | M22: 0 | N22: 0 | O22: 0 | P22: 0
D27: Beneficio proyectado | E27: % Beneficio proyectado | F27: Mensual proyectado | G27: No de meses proyectados | H27: Beneficio total
D28: Ambiental (Consumo o generación) | F28: =IFERROR(TablaBeneProyectado[[#This Row],[% Beneficio proyectado]]*$R$15,"") ->  | H28: =IFERROR(TablaBeneProyectado[[#This Row],[Mensual proyectado]]*TablaBeneProyectado[[#This Row],[No de meses proyectados]],"") -> 
D29: Económico | F29: =IFERROR(TablaBeneProyectado[[#This Row],[% Beneficio proyectado]]*$R$17,"0") -> 0 | H29: =IFERROR(TablaBeneProyectado[[#This Row],[Mensual proyectado]]*TablaBeneProyectado[[#This Row],[No de meses proyectados]],"") -> 0
C34: CÁLCULOS COMPLEMENTARIOS PARA ESTIMAR LA LÍNEA BASE Y LOS BENEFICIOS PROYECTADOS
C40: Evidencias estimación línea base
C83: Cálculos / justificación beneficios ambientales y económicos proyectados

Sheet Resultados del proyecto (hidden)
E2: FORMATO PARA LA PRESENTACIÓN DE PROYECTOS AMBIENTALES AÑO 2025
B4: 9. RESULTADOS DEL PROYECTO
C13: =+#REF! ->  | H13: =+#REF! -> 
C15: Columna1 | D15: Mes 1 | E15: Mes 2 | F15: Mes 3 | G15: Mes 4 | H15: Mes 5 | I15: Mes 6 | J15: PROMEDIO
C16: Línea base | D16: =+#REF! ->  | E16: =+#REF! ->  | F16: =+#REF! ->  | G16: =+#REF! ->  | H16: =+#REF! ->  | I16: =+#REF! ->  | J16: =AVERAGE(Tabla4[[#This Row],[Mes 1]:[Mes 6]]) -> 
C17: Meta | D17: 259.6 | E17: 259.6 | F17: 259.6 | G17: 259.6 | H17: 259.6 | I17: 259.6 | J17: =AVERAGE(Tabla4[[#This Row],[Mes 1]:[Mes 6]]) -> 259.6
C18: Resultado consumo o generación actual | D18: 1100 | E18: 1000 | F18: 1110 | G18: 1215 | H18: 1423 | I18: 1400 | J18: =AVERAGE(Tabla4[[#This Row],[Mes 1]:[Mes 6]]) -> 1208
C19: Reducción real | D19: =+D16-D18 ->  | J19: =AVERAGE(Tabla4[[#This Row],[Mes 1]:[Mes 6]]) -> 
C20: % de cumplimiento de la meta | D20: =(D19/D17) ->  | E20: =(E19/E17) ->  | J20: =AVERAGE(Tabla4[[#This Row],[Mes 1]:[Mes 6]]) -> 
J21: =AVERAGE(J16:J20) -> 
C22: Columna1 | D22: Mes 1 | E22: Mes 2 | F22: Mes 3 | G22: Mes 4 | H22: Mes 5 | I22: Mes 6 | J22: TOTAL
C23: Resultado consumo o generación actual | D23: 1100 | E23: 1000 | F23: 1110 | G23: 1215 | H23: 1423 | I23: 1400
C24: Unidad de producción | D24: 50 | E24: 50 | F24: 50 | G24: 50 | H24: 50 | I24: 50
C25: Costo | D25: =500000/$D$23 -> 454.5454545 | E25: =500000/$E$23 -> 500 | F25: =500000/$F$23 -> 450.4504505 | G25: =500000/$G$23 -> 411.5226337 | H25: =500000/$H$23 -> 351.3703443 | I25: =500000/$I$23 -> 357.1428571
C26: Relación índice de consumo después del proyecto ICDP | D26: =D24/D23 -> 0.04545454545 | E26: 0.05 | F26: 0.04504504505 | G26: 0.04115226337 | H26: 0.03513703443 | I26: 0.03571428571
C27: %cumplimiento de mejora | D27: =(#REF!-D26)/#REF! ->  | E27: =(#REF!-E26)/#REF! ->  | F27: =(#REF!-F26)/#REF! ->  | G27: =(#REF!-G26)/#REF! ->  | H27: =(#REF!-H26)/#REF! ->  | I27: =(#REF!-I26)/#REF! ->  | L27: Componente beneficio principal | N27: Resultado Ambiental (mes) | P27: Resultado económico (mes/$)
C28: Ahorro total | D28: =+D23*D25 -> 500000 | E28: =E25*E23 -> 500000 | F28: =F25*F23 -> 500000 | G28: 500000 | H28: 500000 | I28: 500000 | L28: =+C13 ->  | P28: =+N28*$K$21 -> 0
C41: Columna1 | D41: Mes 1 | E41: Mes 2 | F41: Mes 3 | G41: Mes 4 | H41: Mes 5 | I41: Mes 6 | J41: TOTAL
C42: Línea base | D42: =+#REF! ->  | E42: =+#REF! ->  | F42: =+#REF! ->  | G42: =+#REF! ->  | H42: =+#REF! ->  | I42: =+#REF! -> 
C43: Meta
C44: Resultado consumo o generación actual
C45: Reducción real
C46: % de cumplimiento de la meta
C48: =+#REF! ->  | H48: =+#REF! -> 
C50: Columna1 | D50: Mes 1 | E50: Mes 2 | F50: Mes 3 | G50: Mes 4 | H50: Mes 5 | I50: Mes 6 | J50: TOTAL
C51: Resultado consumo o generación actual
C52: Unidad de producción
C53: Costo
C54: Relación índice de consumo después del proyecto | L54: Componente beneficio principal | N54: Resultado Ambiental (mes) | P54: Resultado económico (mes/$)
C55: %cumplimiento de mejora | L55: =+C48 ->  | P55: =+N55*$K$21 -> 0
C56: Ahorro total
B72: 10. REGISTRO FOTOGRÁFICO

Sheet Costos del proyecto
R1: VERSIÓN 3.0
A2: MENÚ | F2: FORMATO PARA LA PRESENTACIÓN DE PROYECTOS AMBIENTALES AÑO 2026
C4: 3. COSTOS DEL PROYECTO
D11: Nota: La hoja se encuentra protegida en algunas celdas. Por favor, registre manualmente los datos de su organización en los campos de color verde claro.
D12: Costos de inversión | H12: Unidad de medida | J12: Valor de la unidad de medida | L12: Cantidad | M12: Total
D13: Equipos. Describa cuales equipos necesita para realizar el proyecto | H13: Unidad | M13: =J13*L13 -> 0
D14: Herramientas. Describa las herramientas adquiridas | H14: Unidad | M14: =J14*L14 -> 0
D15: Instalaciones iniciales. Ejemplo: instalación de tuberías | H15: Unidad | M15: 0
D16: Software y licencias. Ejemplo: licencias de análisis | H16: Unidad | M16: 0
D17: Consultoría técnica. Ejemplo: Estudios de viabilidad | H17: Unidad | M17: 0
D18: Incentivos Tributarios | H18: Unidad | M18: 0
D19: Otros: Permisos, trámites | H19: Unidad | M19: 0
J20: Sub total Inversión | M20: =SUM(M13:M19) -> 0
D22: Costos operativos mensuales | H22: Unidad de medida | J22: Valor de la unidad de medida | L22: Cantidad | M22: Total
D23: Mano de obra. Describa la mano de obra del proyecto. Ejemplo: técnicos, supervisores | H23: Horas hombre | M23: =J23*L23 -> 0
D24: Mantenimiento. Ejemplo: calibración de sensores o equipos | H24: Servicio | M24: =J24*L24 -> 0
D25: Suministros y consumibles. Ejemplo: filtros, herramientas | H25: Unidad | M25: 0
D26: Energía eléctrica. Ejemplo: operación de bombas | H26: kwh | M26: 0
D27: Transporte. Ejemplo: logística para el traslado de personal o materiales | H27: Viaje | M27: 0
D28: Monitoreo y reportes. Ejemplo: Supervisión y generación de informes | H28: Informes | M28: 0
D29: Otros | M29: 0
J30: Costo operativo mensual | M30: =SUM(M23:M29) -> 0
G31: Tiempo de ejecución del proyecto en meses | M31: ='Datos del del proyecto'!S18 -> 0
I32: Costo operativo total | M32: =+M30*$M$31 -> 0
J33: Total inversión | M33: =+M32+$M$20 -> 0
H34: Tiempo estimado para el retorno de la inversión en meses | M34: =IFERROR($M$33/('Línea Base y beneficios proy'!$F$29+'Línea Base y beneficios pro (2)'!$F$28+'Línea Base y beneficios pro (3)'!$F$28),"") -> 
D38: Fuentes Financiamiento | G38: Recursos propios
G40: Préstamos
G42: Cooperación Internacional
G44: Donaciones

Sheet Resultados del proyecto
R1: VERSIÓN 2.0
A2: MENÚ | G2: FORMATO PARA LA PRESENTACIÓN DE PROYECTOS AMBIENTALES AÑO 2026
C4: 4. RESULTADOS DEL PROYECTO PRINCIPAL
D5: Nota: La hoja se encuentra protegida en algunas celdas. Por favor, registre manualmente los datos de su organización en los campos de color verde claro.
D10: Componente ambiental | H10: Unidad | K10: Mes de inicio de resultados
D11: =+'Línea Base y beneficios proy'!D10:$H$10 -> 0 | H11: =+'Línea Base y beneficios proy'!$I$10 -> 0
D14: Ambiental | E14: Mes 1 | F14: Mes 2 | G14: Mes 3 | H14: Mes 4 | I14: Mes 5 | J14: Mes 6 | K14: Mes 7 | L14: Mes 8 | M14: Mes 9 | N14: Mes 10 | O14: Mes 11 | P14: Mes 12 | Q14: Total | R14: Promedio
D15: Meta | E15: =+'Línea Base y beneficios proy'!$F$28 ->  | F15: =+'Línea Base y beneficios proy'!$F$28 ->  | G15: =+'Línea Base y beneficios proy'!$F$28 ->  | H15: =+'Línea Base y beneficios proy'!$F$28 ->  | I15: =+'Línea Base y beneficios proy'!$F$28 ->  | J15: =+'Línea Base y beneficios proy'!$F$28 ->  | K15: =+'Línea Base y beneficios proy'!$F$28 ->  | L15: =+'Línea Base y beneficios proy'!$F$28 ->  | M15: =+'Línea Base y beneficios proy'!$F$28 ->  | N15: =+'Línea Base y beneficios proy'!$F$28 ->  | O15: =+'Línea Base y beneficios proy'!$F$28 ->  | P15: =+'Línea Base y beneficios proy'!$F$28 ->  | Q15: =SUM(Tabla10[[#This Row],[Mes 1]:[Mes 12]]) -> 0 | R15: =AVERAGE(Tabla10[[#This Row],[Mes 1]:[Mes 12]]) -> 
D16: Resultado consumo o generación | Q16: =SUM(Tabla10[[#This Row],[Mes 1]:[Mes 12]]) -> 0 | R16: =AVERAGE(Tabla10[[#This Row],[Mes 1]:[Mes 12]]) -> 
D17: Beneficio ambiental | E17: =IFERROR(IF($D$11="Uso eficiente de residuos orgánicos",IF(OR('Línea Base y beneficios proy'!$R$15="",E16=""),"",E16-'Línea Base y beneficios proy'!$R$15),IF($D$11="Uso eficiente de residuos aprovechables",IF(OR('Línea Base y beneficios proy'!$R$15="",E16=""),"",E16-'Línea Base y beneficios proy'!$R$15),IF(OR('Línea Base y beneficios proy'!$R$15="",E16=""),"",'Línea Base y beneficios proy'!$R$15-E16))),"") ->  | F17: =IFERROR(IF($D$11="Uso eficiente de residuos orgánicos",IF(OR('Línea Base y beneficios proy'!$R$15="",F16=""),"",F16-'Línea Base y beneficios proy'!$R$15),IF($D$11="Uso eficiente de residuos aprovechables",IF(OR('Línea Base y beneficios proy'!$R$15="",F16=""),"",F16-'Línea Base y beneficios proy'!$R$15),IF(OR('Línea Base y beneficios proy'!$R$15="",F16=""),"",'Línea Base y beneficios proy'!$R$15-F16))),"") ->  | G17: =IFERROR(IF($D$11="Uso eficiente de residuos orgánicos",IF(OR('Línea Base y beneficios proy'!$R$15="",G16=""),"",G16-'Línea Base y beneficios proy'!$R$15),IF($D$11="Uso eficiente de residuos aprovechables",IF(OR('Línea Base y beneficios proy'!$R$15="",G16=""),"",G16-'Línea Base y beneficios proy'!$R$15),IF(OR('Línea Base y beneficios proy'!$R$15="",G16=""),"",'Línea Base y beneficios proy'!$R$15-G16))),"") ->  | H17: =IFERROR(IF($D$11="Uso eficiente de residuos orgánicos",IF(OR('Línea Base y beneficios proy'!$R$15="",H16=""),"",H16-'Línea Base y beneficios proy'!$R$15),IF($D$11="Uso eficiente de residuos aprovechables",IF(OR('Línea Base y beneficios proy'!$R$15="",H16=""),"",H16-'Línea Base y beneficios proy'!$R$15),IF(OR('Línea Base y beneficios proy'!$R$15="",H16=""),"",'Línea Base y beneficios proy'!$R$15-H16))),"") ->  | I17: =IFERROR(IF($D$11="Uso eficiente de residuos orgánicos",IF(OR('Línea Base y beneficios proy'!$R$15="",I16=""),"",I16-'Línea Base y beneficios proy'!$R$15),IF($D$11="Uso eficiente de residuos aprovechables",IF(OR('Línea Base y beneficios proy'!$R$15="",I16=""),"",I16-'Línea Base y beneficios proy'!$R$15),IF(OR('Línea Base y beneficios proy'!$R$15="",I16=""),"",'Línea Base y beneficios proy'!$R$15-I16))),"") ->  | J17: =IFERROR(IF($D$11="Uso eficiente de residuos orgánicos",IF(OR('Línea Base y beneficios proy'!$R$15="",J16=""),"",J16-'Línea Base y beneficios proy'!$R$15),IF($D$11="Uso eficiente de residuos aprovechables",IF(OR('Línea Base y beneficios proy'!$R$15="",J16=""),"",J16-'Línea Base y beneficios proy'!$R$15),IF(OR('Línea Base y beneficios proy'!$R$15="",J16=""),"",'Línea Base y beneficios proy'!$R$15-J16))),"") ->  | K17: =IFERROR(IF($D$11="Uso eficiente de residuos orgánicos",IF(OR('Línea Base y beneficios proy'!$R$15="",K16=""),"",K16-'Línea Base y beneficios proy'!$R$15),IF($D$11="Uso eficiente de residuos aprovechables",IF(OR('Línea Base y beneficios proy'!$R$15="",K16=""),"",K16-'Línea Base y beneficios proy'!$R$15),IF(OR('Línea Base y beneficios proy'!$R$15="",K16=""),"",'Línea Base y beneficios proy'!$R$15-K16))),"") ->  | L17: =IFERROR(IF($D$11="Uso eficiente de residuos orgánicos",IF(OR('Línea Base y beneficios proy'!$R$15="",L16=""),"",L16-'Línea Base y beneficios proy'!$R$15),IF($D$11="Uso eficiente de residuos aprovechables",IF(OR('Línea Base y beneficios proy'!$R$15="",L16=""),"",L16-'Línea Base y beneficios proy'!$R$15),IF(OR('Línea Base y beneficios proy'!$R$15="",L16=""),"",'Línea Base y beneficios proy'!$R$15-L16))),"") ->  | M17: =IFERROR(IF($D$11="Uso eficiente de residuos orgánicos",IF(OR('Línea Base y beneficios proy'!$R$15="",M16=""),"",M16-'Línea Base y beneficios proy'!$R$15),IF($D$11="Uso eficiente de residuos aprovechables",IF(OR('Línea Base y beneficios proy'!$R$15="",M16=""),"",M16-'Línea Base y beneficios proy'!$R$15),IF(OR('Línea Base y beneficios proy'!$R$15="",M16=""),"",'Línea Base y beneficios proy'!$R$15-M16))),"") ->  | N17: =IFERROR(IF($D$11="Uso eficiente de residuos orgánicos",IF(OR('Línea Base y beneficios proy'!$R$15="",N16=""),"",N16-'Línea Base y beneficios proy'!$R$15),IF($D$11="Uso eficiente de residuos aprovechables",IF(OR('Línea Base y beneficios proy'!$R$15="",N16=""),"",N16-'Línea Base y beneficios proy'!$R$15),IF(OR('Línea Base y beneficios proy'!$R$15="",N16=""),"",'Línea Base y beneficios proy'!$R$15-N16))),"") ->  | O17: =IFERROR(IF($D$11="Uso eficiente de residuos orgánicos",IF(OR('Línea Base y beneficios proy'!$R$15="",O16=""),"",O16-'Línea Base y beneficios proy'!$R$15),IF($D$11="Uso eficiente de residuos aprovechables",IF(OR('Línea Base y beneficios proy'!$R$15="",O16=""),"",O16-'Línea Base y beneficios proy'!$R$15),IF(OR('Línea Base y beneficios proy'!$R$15="",O16=""),"",'Línea Base y beneficios proy'!$R$15-O16))),"") ->  | P17: =IFERROR(IF($D$11="Uso eficiente de residuos orgánicos",IF(OR('Línea Base y beneficios proy'!$R$15="",P16=""),"",P16-'Línea Base y beneficios proy'!$R$15),IF($D$11="Uso eficiente de residuos aprovechables",IF(OR('Línea Base y beneficios proy'!$R$15="",P16=""),"",P16-'Línea Base y beneficios proy'!$R$15),IF(OR('Línea Base y beneficios proy'!$R$15="",P16=""),"",'Línea Base y beneficios proy'!$R$15-P16))),"") ->  | Q17: =SUM(Tabla10[[#This Row],[Mes 1]:[Mes 12]]) -> 0 | R17: =AVERAGE(Tabla10[[#This Row],[Mes 1]:[Mes 12]]) -> 
D18: Meta promedio proyección ambiental | E18: ='Línea Base y beneficios proy'!$R$16 ->  | F18: ='Línea Base y beneficios proy'!$R$16 ->  | G18: ='Línea Base y beneficios proy'!$R$16 ->  | H18: ='Línea Base y beneficios proy'!$R$16 ->  | I18: ='Línea Base y beneficios proy'!$R$16 ->  | J18: ='Línea Base y beneficios proy'!$R$16 ->  | K18: ='Línea Base y beneficios proy'!$R$16 ->  | L18: ='Línea Base y beneficios proy'!$R$16 ->  | M18: ='Línea Base y beneficios proy'!$R$16 ->  | N18: ='Línea Base y beneficios proy'!$R$16 ->  | O18: ='Línea Base y beneficios proy'!$R$16 ->  | P18: ='Línea Base y beneficios proy'!$R$16 -> 
D20: Resultados concluyentes del proyecto
D22: % de cumplimiento promedio meta | E22: % de mejoramiento promedio
D23: =R17*100/R15 ->  | E23: =R17*100/'Línea Base y beneficios proy'!R15 -> 
D26: Componente económico
D28: Económico | E28: Mes 1 | F28: Mes 2 | G28: Mes 3 | H28: Mes 4 | I28: Mes 5 | J28: Mes 6 | K28: Mes 7 | L28: Mes 8 | M28: Mes 9 | N28: Mes 10 | O28: Mes 11 | P28: Mes 12 | Q28: Total | R28: Promedio
D29: Meta | E29: =+'Línea Base y beneficios proy'!$F$29 -> 0 | F29: =+'Línea Base y beneficios proy'!$F$29 -> 0 | G29: =+'Línea Base y beneficios proy'!$F$29 -> 0 | H29: =+'Línea Base y beneficios proy'!$F$29 -> 0 | I29: =+'Línea Base y beneficios proy'!$F$29 -> 0 | J29: =+'Línea Base y beneficios proy'!$F$29 -> 0 | K29: =+'Línea Base y beneficios proy'!$F$29 -> 0 | L29: =+'Línea Base y beneficios proy'!$F$29 -> 0 | M29: =+'Línea Base y beneficios proy'!$F$29 -> 0 | N29: =+'Línea Base y beneficios proy'!$F$29 -> 0 | O29: =+'Línea Base y beneficios proy'!$F$29 -> 0 | P29: =+'Línea Base y beneficios proy'!$F$29 -> 0 | Q29: =SUM(Tabla479613[[#This Row],[Mes 1]:[Mes 12]]) -> 0 | R29: =AVERAGE(Tabla479613[[#This Row],[Mes 1]:[Mes 12]]) -> 
D30: Resultado económico | Q30: =SUM(Tabla479613[[#This Row],[Mes 1]:[Mes 12]]) -> 0 | R30: =AVERAGE(Tabla479613[[#This Row],[Mes 1]:[Mes 12]]) -> 
D31: Beneficio económico | E31: =IFERROR(IF($D$11="Uso eficiente de residuos orgánicos",IF(OR('Línea Base y beneficios proy'!$R$17="",E30=""),"",E30-'Línea Base y beneficios proy'!$R$17),IF($D$11="Uso eficiente de residuos aprovechables",IF(OR('Línea Base y beneficios proy'!$R$17="",E30=""),"",E30-'Línea Base y beneficios proy'!$R$17),IF(OR('Línea Base y beneficios proy'!$R$17="",E30=""),"",'Línea Base y beneficios proy'!$R$17-E30))),"") ->  | F31: =IFERROR(IF($D$11="Uso eficiente de residuos orgánicos",IF(OR('Línea Base y beneficios proy'!$R$17="",F30=""),"",F30-'Línea Base y beneficios proy'!$R$17),IF($D$11="Uso eficiente de residuos aprovechables",IF(OR('Línea Base y beneficios proy'!$R$17="",F30=""),"",F30-'Línea Base y beneficios proy'!$R$17),IF(OR('Línea Base y beneficios proy'!$R$17="",F30=""),"",'Línea Base y beneficios proy'!$R$17-F30))),"") ->  | G31: =IFERROR(IF($D$11="Uso eficiente de residuos orgánicos",IF(OR('Línea Base y beneficios proy'!$R$17="",G30=""),"",G30-'Línea Base y beneficios proy'!$R$17),IF($D$11="Uso eficiente de residuos aprovechables",IF(OR('Línea Base y beneficios proy'!$R$17="",G30=""),"",G30-'Línea Base y beneficios proy'!$R$17),IF(OR('Línea Base y beneficios proy'!$R$17="",G30=""),"",'Línea Base y beneficios proy'!$R$17-G30))),"") ->  | H31: =IFERROR(IF($D$11="Uso eficiente de residuos orgánicos",IF(OR('Línea Base y beneficios proy'!$R$17="",H30=""),"",H30-'Línea Base y beneficios proy'!$R$17),IF($D$11="Uso eficiente de residuos aprovechables",IF(OR('Línea Base y beneficios proy'!$R$17="",H30=""),"",H30-'Línea Base y beneficios proy'!$R$17),IF(OR('Línea Base y beneficios proy'!$R$17="",H30=""),"",'Línea Base y beneficios proy'!$R$17-H30))),"") ->  | I31: =IFERROR(IF($D$11="Uso eficiente de residuos orgánicos",IF(OR('Línea Base y beneficios proy'!$R$17="",I30=""),"",I30-'Línea Base y beneficios proy'!$R$17),IF($D$11="Uso eficiente de residuos aprovechables",IF(OR('Línea Base y beneficios proy'!$R$17="",I30=""),"",I30-'Línea Base y beneficios proy'!$R$17),IF(OR('Línea Base y beneficios proy'!$R$17="",I30=""),"",'Línea Base y beneficios proy'!$R$17-I30))),"") ->  | J31: =IFERROR(IF($D$11="Uso eficiente de residuos orgánicos",IF(OR('Línea Base y beneficios proy'!$R$17="",J30=""),"",J30-'Línea Base y beneficios proy'!$R$17),IF($D$11="Uso eficiente de residuos aprovechables",IF(OR('Línea Base y beneficios proy'!$R$17="",J30=""),"",J30-'Línea Base y beneficios proy'!$R$17),IF(OR('Línea Base y beneficios proy'!$R$17="",J30=""),"",'Línea Base y beneficios proy'!$R$17-J30))),"") ->  | K31: =IFERROR(IF($D$11="Uso eficiente de residuos orgánicos",IF(OR('Línea Base y beneficios proy'!$R$17="",K30=""),"",K30-'Línea Base y beneficios proy'!$R$17),IF($D$11="Uso eficiente de residuos aprovechables",IF(OR('Línea Base y beneficios proy'!$R$17="",K30=""),"",K30-'Línea Base y beneficios proy'!$R$17),IF(OR('Línea Base y beneficios proy'!$R$17="",K30=""),"",'Línea Base y beneficios proy'!$R$17-K30))),"") ->  | L31: =IFERROR(IF($D$11="Uso eficiente de residuos orgánicos",IF(OR('Línea Base y beneficios proy'!$R$17="",L30=""),"",L30-'Línea Base y beneficios proy'!$R$17),IF($D$11="Uso eficiente de residuos aprovechables",IF(OR('Línea Base y beneficios proy'!$R$17="",L30=""),"",L30-'Línea Base y beneficios proy'!$R$17),IF(OR('Línea Base y beneficios proy'!$R$17="",L30=""),"",'Línea Base y beneficios proy'!$R$17-L30))),"") ->  | M31: =IFERROR(IF($D$11="Uso eficiente de residuos orgánicos",IF(OR('Línea Base y beneficios proy'!$R$17="",M30=""),"",M30-'Línea Base y beneficios proy'!$R$17),IF($D$11="Uso eficiente de residuos aprovechables",IF(OR('Línea Base y beneficios proy'!$R$17="",M30=""),"",M30-'Línea Base y beneficios proy'!$R$17),IF(OR('Línea Base y beneficios proy'!$R$17="",M30=""),"",'Línea Base y beneficios proy'!$R$17-M30))),"") ->  | N31: =IFERROR(IF($D$11="Uso eficiente de residuos orgánicos",IF(OR('Línea Base y beneficios proy'!$R$17="",N30=""),"",N30-'Línea Base y beneficios proy'!$R$17),IF($D$11="Uso eficiente de residuos aprovechables",IF(OR('Línea Base y beneficios proy'!$R$17="",N30=""),"",N30-'Línea Base y beneficios proy'!$R$17),IF(OR('Línea Base y beneficios proy'!$R$17="",N30=""),"",'Línea Base y beneficios proy'!$R$17-N30))),"") ->  | O31: =IFERROR(IF($D$11="Uso eficiente de residuos orgánicos",IF(OR('Línea Base y beneficios proy'!$R$17="",O30=""),"",O30-'Línea Base y beneficios proy'!$R$17),IF($D$11="Uso eficiente de residuos aprovechables",IF(OR('Línea Base y beneficios proy'!$R$17="",O30=""),"",O30-'Línea Base y beneficios proy'!$R$17),IF(OR('Línea Base y beneficios proy'!$R$17="",O30=""),"",'Línea Base y beneficios proy'!$R$17-O30))),"") ->  | P31: =IFERROR(IF($D$11="Uso eficiente de residuos orgánicos",IF(OR('Línea Base y beneficios proy'!$R$17="",P30=""),"",P30-'Línea Base y beneficios proy'!$R$17),IF($D$11="Uso eficiente de residuos aprovechables",IF(OR('Línea Base y beneficios proy'!$R$17="",P30=""),"",P30-'Línea Base y beneficios proy'!$R$17),IF(OR('Línea Base y beneficios proy'!$R$17="",P30=""),"",'Línea Base y beneficios proy'!$R$17-P30))),"") ->  | Q31: =SUM(Tabla479613[[#This Row],[Mes 1]:[Mes 12]]) -> 0 | R31: =AVERAGE(Tabla479613[[#This Row],[Mes 1]:[Mes 12]]) -> 
D42: Componente Ambiental | L42: Componente Económico
D44: Componente ambiental, la línea base inicial indicaba un consumo promedio mensual de XXXXX. Tras implementar las medidas propuestas, se alcanzó una reducción real de XXXX mensuales en promedio, representando un % de disminución respecto a la línea base. | L44: Componente económico, se proyectó un ahorro de $XXX en costos asociados al consumo o generación de XXXX. Al cierre, los beneficios obtenidos alcanzaron los $xxx, esto representa un cumplimiento del xx% respecto a las expectativas económicas del período.
D51: EVIDENCIAS DE IMPLEMENTACIÓN
D54: Cálculos y resultados obtenidos
D69: Fotografías y evidencias de implementación
V103: OBSERVACIONES TUTOR

Sheet Línea Base y beneficios pro (2)
T1: VERSIÓN 2.0
A2: MENÚ | F2: FORMATO PARA LA PRESENTACIÓN DE PROYECTOS AMBIENTALES AÑO 2026
D4: Nota: La hoja se encuentra protegida en algunas celdas. Por favor, registre manualmente los datos de su organización en los campos de color verde claro.
C5: 5. LINEA BASE Y BENEFICIOS COMPLEMENTARIOS 1
D9: Componente ambiental | I9: Unidad | L9: Mes de inicio de la línea base
D14: Línea Base | E14: Mes 1 | F14: Mes 2 | G14: Mes 3 | H14: Mes 4 | I14: Mes 5 | J14: Mes 6 | K14: Mes 7 | L14: Mes 8 | M14: Mes 9 | N14: Mes 10 | O14: Mes 11 | P14: Mes 12 | Q14: Total | R14: Promedio mes | S14: Mín. | T14: Máx.
D15: Consumo o generación | Q15: =SUM(TablaLineaBase21[[#This Row],[Mes 1]:[Mes 12]]) -> 0 | R15: =AVERAGE(TablaLineaBase21[[#This Row],[Mes 1]:[Mes 12]]) ->  | S15: =MIN(TablaLineaBase21[[#This Row],[Mes 1]:[Mes 12]]) -> 0 | T15: =MAX(TablaLineaBase21[[#This Row],[Mes 1]:[Mes 12]]) -> 0
D16: Consumo o generación proyectado | E16: =IFERROR(IF($D$10="Uso eficiente de residuos orgánicos",IF(E15+$F$27<=$F$27,"",E15+$F$27),IF($D$10="Uso eficiente de residuos aprovechables",IF(E15+$F$27<=$F$27,"",E15+$F$27),IF(E15-$F$27<0,"",E15-$F$27))),"") ->  | F16: =IFERROR(IF($D$10="Uso eficiente de residuos orgánicos",IF(F15+$F$27<=$F$27,"",F15+$F$27),IF($D$10="Uso eficiente de residuos aprovechables",IF(F15+$F$27<=$F$27,"",F15+$F$27),IF(F15-$F$27<0,"",F15-$F$27))),"") ->  | Q16: =SUM(TablaLineaBase21[[#This Row],[Mes 1]:[Mes 12]]) -> 0 | R16: =AVERAGE(TablaLineaBase21[[#This Row],[Mes 1]:[Mes 12]]) ->  | S16: =MIN(TablaLineaBase21[[#This Row],[Mes 1]:[Mes 12]]) -> 0 | T16: =MAX(TablaLineaBase21[[#This Row],[Mes 1]:[Mes 12]]) -> 0
D17: Costo | Q17: =SUM(TablaLineaBase21[[#This Row],[Mes 1]:[Mes 12]]) -> 0 | R17: =AVERAGE(TablaLineaBase21[[#This Row],[Mes 1]:[Mes 12]]) ->  | S17: =MIN(TablaLineaBase21[[#This Row],[Mes 1]:[Mes 12]]) -> 0 | T17: =MAX(TablaLineaBase21[[#This Row],[Mes 1]:[Mes 12]]) -> 0
D18: Promedio consumo o generación | E18: =+$R$15 ->  | F18: =+$R$15 -> 
D19: Promedio proyección beneficio ambiental | E19: =+$R$16 ->  | F19: =+$R$16 -> 
D20: Máximo | E20: =$T$15 -> 0 | F20: =$T$15 -> 0 | G20: 0 | H20: 0 | I20: 0 | J20: 0 | K20: 0 | L20: 0 | M20: 0 | N20: 0 | O20: 0 | P20: 0
D21: Mínimo | E21: =$S$15 -> 0 | F21: =$S$15 -> 0 | G21: 0 | H21: 0 | I21: 0 | J21: 0 | K21: 0 | L21: 0 | M21: 0 | N21: 0 | O21: 0 | P21: 0
D26: Beneficio proyectado | E26: % Beneficio proyectado | F26: Mensual proyectado | G26: No de meses proyectados | H26: Beneficio total
D27: Ambiental (Consumo o generación) | F27: =IFERROR(TablaBeneProyectado22[[#This Row],[% Beneficio proyectado]]*$R$15,"") ->  | H27: =IFERROR(TablaBeneProyectado22[[#This Row],[Mensual proyectado]]*TablaBeneProyectado22[[#This Row],[No de meses proyectados]],"") -> 
D28: Económico | F28: =IFERROR(TablaBeneProyectado22[[#This Row],[% Beneficio proyectado]]*$R$17,"0") -> 0 | H28: =IFERROR(TablaBeneProyectado22[[#This Row],[Mensual proyectado]]*TablaBeneProyectado22[[#This Row],[No de meses proyectados]],"") -> 0
C32: CÁLCULOS COMPLEMENTARIOS PARA ESTIMAR LA LÍNEA BASE Y LOS BENEFICIOS PROYECTADOS
C38: Evidencias estimación línea base
C81: Cálculos / justificación beneficios ambientales y económicos proyectados

Sheet Resultados del proyecto (2)
R1: VERSIÓN 3.0
A2: MENÚ | G2: FORMATO PARA LA PRESENTACIÓN DE PROYECTOS AMBIENTALES AÑO 2026
C4: 6. RESULTADOS COMPLEMENTARIOS 1
D5: Nota: La hoja se encuentra protegida en algunas celdas. Por favor, registre manulamente los datos de su organización en los campos de color verde claro.
D10: Componente ambiental | H10: Unidad | K10: Mes de inicio de resultados
D11: =+'Línea Base y beneficios pro (2)'!$D$10:$H$10 -> 0 | H11: ='Línea Base y beneficios pro (2)'!$I$10 -> 0
D14: Ambiental | E14: Mes 1 | F14: Mes 2 | G14: Mes 3 | H14: Mes 4 | I14: Mes 5 | J14: Mes 6 | K14: Mes 7 | L14: Mes 8 | M14: Mes 9 | N14: Mes 10 | O14: Mes 11 | P14: Mes 12 | Q14: Total | R14: Promedio
D15: Meta | E15: ='Línea Base y beneficios pro (2)'!$F$27 ->  | F15: ='Línea Base y beneficios pro (2)'!$F$27 ->  | G15: ='Línea Base y beneficios pro (2)'!$F$27 ->  | H15: ='Línea Base y beneficios pro (2)'!$F$27 ->  | I15: ='Línea Base y beneficios pro (2)'!$F$27 ->  | J15: ='Línea Base y beneficios pro (2)'!$F$27 ->  | K15: ='Línea Base y beneficios pro (2)'!$F$27 ->  | L15: ='Línea Base y beneficios pro (2)'!$F$27 ->  | M15: ='Línea Base y beneficios pro (2)'!$F$27 ->  | N15: ='Línea Base y beneficios pro (2)'!$F$27 ->  | O15: ='Línea Base y beneficios pro (2)'!$F$27 ->  | P15: ='Línea Base y beneficios pro (2)'!$F$27 ->  | Q15: =SUM($E$15:$P$15) -> 0 | R15: =AVERAGE($E$15:$P$15) -> 
D16: Resultado consumo o generación | Q16: =SUM($E$16:$P$16) -> 0 | R16: =AVERAGE($E$16:$P$16) -> 
D17: Beneficio Ambiental | E17: =IFERROR(IF($D$11="Uso eficiente de residuos orgánicos",IF(OR('Línea Base y beneficios pro (2)'!$R$15="",E16=""),"",E16-'Línea Base y beneficios pro (2)'!$R$15),IF($D$11="Uso eficiente de residuos aprovechables",IF(OR('Línea Base y beneficios pro (2)'!$R$15="",E16=""),"",E16-'Línea Base y beneficios pro (2)'!$R$15),IF(OR('Línea Base y beneficios pro (2)'!$R$15="",E16=""),"",'Línea Base y beneficios pro (2)'!$R$15-E16))),"") ->  | F17: =IFERROR(IF($D$11="Uso eficiente de residuos orgánicos",IF(OR('Línea Base y beneficios pro (2)'!$R$15="",F16=""),"",F16-'Línea Base y beneficios pro (2)'!$R$15),IF($D$11="Uso eficiente de residuos aprovechables",IF(OR('Línea Base y beneficios pro (2)'!$R$15="",F16=""),"",F16-'Línea Base y beneficios pro (2)'!$R$15),IF(OR('Línea Base y beneficios pro (2)'!$R$15="",F16=""),"",'Línea Base y beneficios pro (2)'!$R$15-F16))),"") ->  | G17: =IFERROR(IF($D$11="Uso eficiente de residuos orgánicos",IF(OR('Línea Base y beneficios pro (2)'!$R$15="",G16=""),"",G16-'Línea Base y beneficios pro (2)'!$R$15),IF($D$11="Uso eficiente de residuos aprovechables",IF(OR('Línea Base y beneficios pro (2)'!$R$15="",G16=""),"",G16-'Línea Base y beneficios pro (2)'!$R$15),IF(OR('Línea Base y beneficios pro (2)'!$R$15="",G16=""),"",'Línea Base y beneficios pro (2)'!$R$15-G16))),"") ->  | H17: =IFERROR(IF($D$11="Uso eficiente de residuos orgánicos",IF(OR('Línea Base y beneficios pro (2)'!$R$15="",H16=""),"",H16-'Línea Base y beneficios pro (2)'!$R$15),IF($D$11="Uso eficiente de residuos aprovechables",IF(OR('Línea Base y beneficios pro (2)'!$R$15="",H16=""),"",H16-'Línea Base y beneficios pro (2)'!$R$15),IF(OR('Línea Base y beneficios pro (2)'!$R$15="",H16=""),"",'Línea Base y beneficios pro (2)'!$R$15-H16))),"") ->  | I17: =IFERROR(IF($D$11="Uso eficiente de residuos orgánicos",IF(OR('Línea Base y beneficios pro (2)'!$R$15="",I16=""),"",I16-'Línea Base y beneficios pro (2)'!$R$15),IF($D$11="Uso eficiente de residuos aprovechables",IF(OR('Línea Base y beneficios pro (2)'!$R$15="",I16=""),"",I16-'Línea Base y beneficios pro (2)'!$R$15),IF(OR('Línea Base y beneficios pro (2)'!$R$15="",I16=""),"",'Línea Base y beneficios pro (2)'!$R$15-I16))),"") ->  | J17: =IFERROR(IF($D$11="Uso eficiente de residuos orgánicos",IF(OR('Línea Base y beneficios pro (2)'!$R$15="",J16=""),"",J16-'Línea Base y beneficios pro (2)'!$R$15),IF($D$11="Uso eficiente de residuos aprovechables",IF(OR('Línea Base y beneficios pro (2)'!$R$15="",J16=""),"",J16-'Línea Base y beneficios pro (2)'!$R$15),IF(OR('Línea Base y beneficios pro (2)'!$R$15="",J16=""),"",'Línea Base y beneficios pro (2)'!$R$15-J16))),"") ->  | K17: =IFERROR(IF($D$11="Uso eficiente de residuos orgánicos",IF(OR('Línea Base y beneficios pro (2)'!$R$15="",K16=""),"",K16-'Línea Base y beneficios pro (2)'!$R$15),IF($D$11="Uso eficiente de residuos aprovechables",IF(OR('Línea Base y beneficios pro (2)'!$R$15="",K16=""),"",K16-'Línea Base y beneficios pro (2)'!$R$15),IF(OR('Línea Base y beneficios pro (2)'!$R$15="",K16=""),"",'Línea Base y beneficios pro (2)'!$R$15-K16))),"") ->  | L17: =IFERROR(IF($D$11="Uso eficiente de residuos orgánicos",IF(OR('Línea Base y beneficios pro (2)'!$R$15="",L16=""),"",L16-'Línea Base y beneficios pro (2)'!$R$15),IF($D$11="Uso eficiente de residuos aprovechables",IF(OR('Línea Base y beneficios pro (2)'!$R$15="",L16=""),"",L16-'Línea Base y beneficios pro (2)'!$R$15),IF(OR('Línea Base y beneficios pro (2)'!$R$15="",L16=""),"",'Línea Base y beneficios pro (2)'!$R$15-L16))),"") ->  | M17: =IFERROR(IF($D$11="Uso eficiente de residuos orgánicos",IF(OR('Línea Base y beneficios pro (2)'!$R$15="",M16=""),"",M16-'Línea Base y beneficios pro (2)'!$R$15),IF($D$11="Uso eficiente de residuos aprovechables",IF(OR('Línea Base y beneficios pro (2)'!$R$15="",M16=""),"",M16-'Línea Base y beneficios pro (2)'!$R$15),IF(OR('Línea Base y beneficios pro (2)'!$R$15="",M16=""),"",'Línea Base y beneficios pro (2)'!$R$15-M16))),"") ->  | N17: =IFERROR(IF($D$11="Uso eficiente de residuos orgánicos",IF(OR('Línea Base y beneficios pro (2)'!$R$15="",N16=""),"",N16-'Línea Base y beneficios pro (2)'!$R$15),IF($D$11="Uso eficiente de residuos aprovechables",IF(OR('Línea Base y beneficios pro (2)'!$R$15="",N16=""),"",N16-'Línea Base y beneficios pro (2)'!$R$15),IF(OR('Línea Base y beneficios pro (2)'!$R$15="",N16=""),"",'Línea Base y beneficios pro (2)'!$R$15-N16))),"") ->  | O17: =IFERROR(IF($D$11="Uso eficiente de residuos orgánicos",IF(OR('Línea Base y beneficios pro (2)'!$R$15="",O16=""),"",O16-'Línea Base y beneficios pro (2)'!$R$15),IF($D$11="Uso eficiente de residuos aprovechables",IF(OR('Línea Base y beneficios pro (2)'!$R$15="",O16=""),"",O16-'Línea Base y beneficios pro (2)'!$R$15),IF(OR('Línea Base y beneficios pro (2)'!$R$15="",O16=""),"",'Línea Base y beneficios pro (2)'!$R$15-O16))),"") ->  | P17: =IFERROR(IF($D$11="Uso eficiente de residuos orgánicos",IF(OR('Línea Base y beneficios pro (2)'!$R$15="",P16=""),"",P16-'Línea Base y beneficios pro (2)'!$R$15),IF($D$11="Uso eficiente de residuos aprovechables",IF(OR('Línea Base y beneficios pro (2)'!$R$15="",P16=""),"",P16-'Línea Base y beneficios pro (2)'!$R$15),IF(OR('Línea Base y beneficios pro (2)'!$R$15="",P16=""),"",'Línea Base y beneficios pro (2)'!$R$15-P16))),"") ->  | Q17: =SUM($E$17:$P$17) -> 0 | R17: =AVERAGE($E$17:$P$17) -> 
D19: Meta promedio proyección ambiental | E19: =+'Línea Base y beneficios pro (2)'!$R$16 ->  | F19: =+'Línea Base y beneficios pro (2)'!$R$16 ->  | G19: =+'Línea Base y beneficios pro (2)'!$R$16 ->  | H19: =+'Línea Base y beneficios pro (2)'!$R$16 ->  | I19: =+'Línea Base y beneficios pro (2)'!$R$16 ->  | J19: =+'Línea Base y beneficios pro (2)'!$R$16 ->  | K19: =+'Línea Base y beneficios pro (2)'!$R$16 ->  | L19: =+'Línea Base y beneficios pro (2)'!$R$16 ->  | M19: =+'Línea Base y beneficios pro (2)'!$R$16 ->  | N19: =+'Línea Base y beneficios pro (2)'!$R$16 ->  | O19: =+'Línea Base y beneficios pro (2)'!$R$16 ->  | P19: =+'Línea Base y beneficios pro (2)'!$R$16 -> 
D21: Resultados concluyentes del proyecto
D23: % de cumplimiento promedio meta | E23: % de mejoramiento promedio
D24: =$R$17*1/$R$15 ->  | E24: =$R$17*1/'Línea Base y beneficios pro (2)'!$R$15 -> 
D27: Componente económico
D29: Económico | E29: Mes 1 | F29: Mes 2 | G29: Mes 3 | H29: Mes 4 | I29: Mes 5 | J29: Mes 6 | K29: Mes 7 | L29: Mes 8 | M29: Mes 9 | N29: Mes 10 | O29: Mes 11 | P29: Mes 12 | Q29: Total | R29: Promedio
D30: Meta | E30: ='Línea Base y beneficios pro (2)'!$F$28 -> 0 | F30: ='Línea Base y beneficios pro (2)'!$F$28 -> 0 | G30: ='Línea Base y beneficios pro (2)'!$F$28 -> 0 | H30: ='Línea Base y beneficios pro (2)'!$F$28 -> 0 | I30: ='Línea Base y beneficios pro (2)'!$F$28 -> 0 | J30: ='Línea Base y beneficios pro (2)'!$F$28 -> 0 | K30: ='Línea Base y beneficios pro (2)'!$F$28 -> 0 | L30: ='Línea Base y beneficios pro (2)'!$F$28 -> 0 | M30: ='Línea Base y beneficios pro (2)'!$F$28 -> 0 | N30: ='Línea Base y beneficios pro (2)'!$F$28 -> 0 | O30: ='Línea Base y beneficios pro (2)'!$F$28 -> 0 | P30: ='Línea Base y beneficios pro (2)'!$F$28 -> 0 | Q30: =SUM($E$30:$P$30) -> 0 | R30: =AVERAGE($E$30:$P$30) -> 
D31: Resultado económico | Q31: =SUM($E$31:$P$31) -> 0 | R31: =AVERAGE($E$31:$P$31) -> 
D32: Beneficio económico | E32: =IFERROR(IF($D$11="Uso eficiente de residuos orgánicos",IF(OR('Línea Base y beneficios pro (2)'!$R$15="",E31=""),"",E31-'Línea Base y beneficios pro (2)'!$R$15),IF($D$11="Uso eficiente de residuos aprovechables",IF(OR('Línea Base y beneficios pro (2)'!$R$15="",E31=""),"",E31-'Línea Base y beneficios pro (2)'!$R$15),IF(OR('Línea Base y beneficios pro (2)'!$R$15="",E31=""),"",'Línea Base y beneficios pro (2)'!$R$15-E31))),"") ->  | F32: =IFERROR(IF($D$11="Uso eficiente de residuos orgánicos",IF(OR('Línea Base y beneficios pro (2)'!$R$15="",F31=""),"",F31-'Línea Base y beneficios pro (2)'!$R$15),IF($D$11="Uso eficiente de residuos aprovechables",IF(OR('Línea Base y beneficios pro (2)'!$R$15="",F31=""),"",F31-'Línea Base y beneficios pro (2)'!$R$15),IF(OR('Línea Base y beneficios pro (2)'!$R$15="",F31=""),"",'Línea Base y beneficios pro (2)'!$R$15-F31))),"") ->  | G32: =IFERROR(IF($D$11="Uso eficiente de residuos orgánicos",IF(OR('Línea Base y beneficios pro (2)'!$R$15="",G31=""),"",G31-'Línea Base y beneficios pro (2)'!$R$15),IF($D$11="Uso eficiente de residuos aprovechables",IF(OR('Línea Base y beneficios pro (2)'!$R$15="",G31=""),"",G31-'Línea Base y beneficios pro (2)'!$R$15),IF(OR('Línea Base y beneficios pro (2)'!$R$15="",G31=""),"",'Línea Base y beneficios pro (2)'!$R$15-G31))),"") ->  | H32: =IFERROR(IF($D$11="Uso eficiente de residuos orgánicos",IF(OR('Línea Base y beneficios pro (2)'!$R$15="",H31=""),"",H31-'Línea Base y beneficios pro (2)'!$R$15),IF($D$11="Uso eficiente de residuos aprovechables",IF(OR('Línea Base y beneficios pro (2)'!$R$15="",H31=""),"",H31-'Línea Base y beneficios pro (2)'!$R$15),IF(OR('Línea Base y beneficios pro (2)'!$R$15="",H31=""),"",'Línea Base y beneficios pro (2)'!$R$15-H31))),"") ->  | I32: =IFERROR(IF($D$11="Uso eficiente de residuos orgánicos",IF(OR('Línea Base y beneficios pro (2)'!$R$15="",I31=""),"",I31-'Línea Base y beneficios pro (2)'!$R$15),IF($D$11="Uso eficiente de residuos aprovechables",IF(OR('Línea Base y beneficios pro (2)'!$R$15="",I31=""),"",I31-'Línea Base y beneficios pro (2)'!$R$15),IF(OR('Línea Base y beneficios pro (2)'!$R$15="",I31=""),"",'Línea Base y beneficios pro (2)'!$R$15-I31))),"") ->  | J32: =IFERROR(IF($D$11="Uso eficiente de residuos orgánicos",IF(OR('Línea Base y beneficios pro (2)'!$R$15="",J31=""),"",J31-'Línea Base y beneficios pro (2)'!$R$15),IF($D$11="Uso eficiente de residuos aprovechables",IF(OR('Línea Base y beneficios pro (2)'!$R$15="",J31=""),"",J31-'Línea Base y beneficios pro (2)'!$R$15),IF(OR('Línea Base y beneficios pro (2)'!$R$15="",J31=""),"",'Línea Base y beneficios pro (2)'!$R$15-J31))),"") ->  | K32: =IFERROR(IF($D$11="Uso eficiente de residuos orgánicos",IF(OR('Línea Base y beneficios pro (2)'!$R$15="",K31=""),"",K31-'Línea Base y beneficios pro (2)'!$R$15),IF($D$11="Uso eficiente de residuos aprovechables",IF(OR('Línea Base y beneficios pro (2)'!$R$15="",K31=""),"",K31-'Línea Base y beneficios pro (2)'!$R$15),IF(OR('Línea Base y beneficios pro (2)'!$R$15="",K31=""),"",'Línea Base y beneficios pro (2)'!$R$15-K31))),"") ->  | L32: =IFERROR(IF($D$11="Uso eficiente de residuos orgánicos",IF(OR('Línea Base y beneficios pro (2)'!$R$15="",L31=""),"",L31-'Línea Base y beneficios pro (2)'!$R$15),IF($D$11="Uso eficiente de residuos aprovechables",IF(OR('Línea Base y beneficios pro (2)'!$R$15="",L31=""),"",L31-'Línea Base y beneficios pro (2)'!$R$15),IF(OR('Línea Base y beneficios pro (2)'!$R$15="",L31=""),"",'Línea Base y beneficios pro (2)'!$R$15-L31))),"") ->  | M32: =IFERROR(IF($D$11="Uso eficiente de residuos orgánicos",IF(OR('Línea Base y beneficios pro (2)'!$R$15="",M31=""),"",M31-'Línea Base y beneficios pro (2)'!$R$15),IF($D$11="Uso eficiente de residuos aprovechables",IF(OR('Línea Base y beneficios pro (2)'!$R$15="",M31=""),"",M31-'Línea Base y beneficios pro (2)'!$R$15),IF(OR('Línea Base y beneficios pro (2)'!$R$15="",M31=""),"",'Línea Base y beneficios pro (2)'!$R$15-M31))),"") ->  | N32: =IFERROR(IF($D$11="Uso eficiente de residuos orgánicos",IF(OR('Línea Base y beneficios pro (2)'!$R$15="",N31=""),"",N31-'Línea Base y beneficios pro (2)'!$R$15),IF($D$11="Uso eficiente de residuos aprovechables",IF(OR('Línea Base y beneficios pro (2)'!$R$15="",N31=""),"",N31-'Línea Base y beneficios pro (2)'!$R$15),IF(OR('Línea Base y beneficios pro (2)'!$R$15="",N31=""),"",'Línea Base y beneficios pro (2)'!$R$15-N31))),"") ->  | O32: =IFERROR(IF($D$11="Uso eficiente de residuos orgánicos",IF(OR('Línea Base y beneficios pro (2)'!$R$15="",O31=""),"",O31-'Línea Base y beneficios pro (2)'!$R$15),IF($D$11="Uso eficiente de residuos aprovechables",IF(OR('Línea Base y beneficios pro (2)'!$R$15="",O31=""),"",O31-'Línea Base y beneficios pro (2)'!$R$15),IF(OR('Línea Base y beneficios pro (2)'!$R$15="",O31=""),"",'Línea Base y beneficios pro (2)'!$R$15-O31))),"") ->  | P32: =IFERROR(IF($D$11="Uso eficiente de residuos orgánicos",IF(OR('Línea Base y beneficios pro (2)'!$R$15="",P31=""),"",P31-'Línea Base y beneficios pro (2)'!$R$15),IF($D$11="Uso eficiente de residuos aprovechables",IF(OR('Línea Base y beneficios pro (2)'!$R$15="",P31=""),"",P31-'Línea Base y beneficios pro (2)'!$R$15),IF(OR('Línea Base y beneficios pro (2)'!$R$15="",P31=""),"",'Línea Base y beneficios pro (2)'!$R$15-P31))),"") ->  | Q32: =SUM($E$31:$P$31) -> 0 | R32: =AVERAGE($E$31:$P$31) -> 
D45: Componente Ambiental | L45: Componente Económico
D47: Componente ambiental, la línea base inicial indicaba un consumo promedio mensual de XXXXX. Tras implementar las medidas propuestas, se alcanzó una reducción real de XXXX mensuales en promedio, representando un % de disminución respecto a la línea base. | L47: Componente económico, se proyectó un ahorro de $XXX en costos asociados al consumo o generación de XXXX. Al cierre, los beneficios obtenidos alcanzaron los $xxx, esto representa un cumplimiento del xx% respecto a las expectativas económicas del período.
D54: EVIDENCIAS DE IMPLEMENTACIÓN
D57: Cálculos y resultados obtenidos
D72: Fotografías y evidencias de implementación
W105: OBSERVACIONES TUTOR

Sheet Línea Base y beneficios pro (3)
T1: VERSIÓN 2.0
A2: MENÚ | F2: FORMATO PARA LA PRESENTACIÓN DE PROYECTOS AMBIENTALES AÑO 2026
D4: Nota: La hoja se encuentra protegida en algunas celdas. Por favor, registre manualmente los datos de su organización en los campos de color verde claro.
C5: 7. LINEA BASE Y BENEFICIOS COMPLEMENTARIOS 2
D9: Componente ambiental | I9: Unidad | L9: Mes de inicio de la línea base
D14: Línea Base | E14: Mes 1 | F14: Mes 2 | G14: Mes 3 | H14: Mes 4 | I14: Mes 5 | J14: Mes 6 | K14: Mes 7 | L14: Mes 8 | M14: Mes 9 | N14: Mes 10 | O14: Mes 11 | P14: Mes 12 | Q14: Total | R14: Promedio mes | S14: Mín. | T14: Máx.
D15: Consumo o generación | Q15: =SUM(TablaLineaBase2123[[#This Row],[Mes 1]:[Mes 12]]) -> 0 | R15: =AVERAGE(TablaLineaBase2123[[#This Row],[Mes 1]:[Mes 12]]) ->  | S15: =MIN(TablaLineaBase2123[[#This Row],[Mes 1]:[Mes 12]]) -> 0 | T15: =MAX(TablaLineaBase2123[[#This Row],[Mes 1]:[Mes 12]]) -> 0
D16: Consumo o generación proyectado | E16: =IFERROR(IF($D$10="Uso eficiente de residuos orgánicos",IF(E15+$F$27<=$F$27,"",E15+$F$27),IF($D$10="Uso eficiente de residuos aprovechables",IF(E15+$F$27<=$F$27,"",E15+$F$27),IF(E15-$F$27<0,"",E15-$F$27))),"") ->  | F16: =IFERROR(IF($D$10="Uso eficiente de residuos orgánicos",IF(F15+$F$27<=$F$27,"",F15+$F$27),IF($D$10="Uso eficiente de residuos aprovechables",IF(F15+$F$27<=$F$27,"",F15+$F$27),IF(F15-$F$27<0,"",F15-$F$27))),"") ->  | Q16: =SUM(TablaLineaBase2123[[#This Row],[Mes 1]:[Mes 12]]) -> 0 | R16: =AVERAGE(TablaLineaBase2123[[#This Row],[Mes 1]:[Mes 12]]) ->  | S16: =MIN(TablaLineaBase2123[[#This Row],[Mes 1]:[Mes 12]]) -> 0 | T16: =MAX(TablaLineaBase2123[[#This Row],[Mes 1]:[Mes 12]]) -> 0
D17: Costo | Q17: =SUM(TablaLineaBase2123[[#This Row],[Mes 1]:[Mes 12]]) -> 0 | R17: =AVERAGE(TablaLineaBase2123[[#This Row],[Mes 1]:[Mes 12]]) ->  | S17: =MIN(TablaLineaBase2123[[#This Row],[Mes 1]:[Mes 12]]) -> 0 | T17: =MAX(TablaLineaBase2123[[#This Row],[Mes 1]:[Mes 12]]) -> 0
D18: Promedio consumo o generación | E18: =+$R$15 ->  | F18: =+$R$15 -> 
D19: Promedio proyección beneficio ambiental | E19: =+$R$16 ->  | F19: =+$R$16 -> 
D20: Máximo | E20: =$T$15 -> 0 | F20: =$T$15 -> 0 | G20: 0 | H20: 0 | I20: 0 | J20: 0 | K20: 0 | L20: 0 | M20: 0 | N20: 0 | O20: 0 | P20: 0
D21: Mínimo | E21: =$S$15 -> 0 | F21: =$S$15 -> 0 | G21: 0 | H21: 0 | I21: 0 | J21: 0 | K21: 0 | L21: 0 | M21: 0 | N21: 0 | O21: 0 | P21: 0
D26: Beneficio proyectado | E26: % Beneficio proyectado | F26: Mensual proyectado | G26: No de meses proyectados | H26: Beneficio total
D27: Ambiental (Consumo o generación) | F27: =IFERROR(TablaBeneProyectado2224[[#This Row],[% Beneficio proyectado]]*$R$15,"") ->  | H27: =IFERROR(TablaBeneProyectado2224[[#This Row],[Mensual proyectado]]*TablaBeneProyectado2224[[#This Row],[No de meses proyectados]],"") -> 
D28: Económico | F28: =IFERROR(TablaBeneProyectado2224[[#This Row],[% Beneficio proyectado]]*$R$17,"0") -> 0 | H28: =IFERROR(TablaBeneProyectado2224[[#This Row],[Mensual proyectado]]*TablaBeneProyectado2224[[#This Row],[No de meses proyectados]],"") -> 0
C32: CÁLCULOS COMPLEMENTARIOS PARA ESTIMAR LA LÍNEA BASE Y LOS BENEFICIOS PROYECTADOS
C38: Evidencias estimación línea base
C81: Cálculos / justificación beneficios ambientales y económicos proyectados

Sheet Resultados del proyecto (3)
R1: VERSIÓN 3.0
A2: MENÚ | G2: FORMATO PARA LA PRESENTACIÓN DE PROYECTOS AMBIENTALES AÑO 2026
C4: 8. RESULTADOS COMPLEMENTARIOS 2
D5: Nota: La hoja se encuentra protegida en algunas celdas. Por favor, registre manualmente los datos de su organización en los campos de color verde claro.
H8: =+'Línea Base y beneficios proy'!$I$10 -> 0
D10: Componente ambiental | H10: Unidad | K10: Mes de inicio de resultados
D11: =+'Línea Base y beneficios pro (3)'!$D$10:$H$10 -> 0 | H11: =+'Línea Base y beneficios pro (3)'!$I$10 -> 0
D14: Ambiental | E14: Mes 1 | F14: Mes 2 | G14: Mes 3 | H14: Mes 4 | I14: Mes 5 | J14: Mes 6 | K14: Mes 7 | L14: Mes 8 | M14: Mes 9 | N14: Mes 10 | O14: Mes 11 | P14: Mes 12 | Q14: Total | R14: Promedio
D15: Meta | E15: ='Línea Base y beneficios pro (3)'!$F$27 ->  | F15: ='Línea Base y beneficios pro (3)'!$F$27 ->  | G15: ='Línea Base y beneficios pro (3)'!$F$27 ->  | H15: ='Línea Base y beneficios pro (3)'!$F$27 ->  | I15: ='Línea Base y beneficios pro (3)'!$F$27 ->  | J15: ='Línea Base y beneficios pro (3)'!$F$27 ->  | K15: ='Línea Base y beneficios pro (3)'!$F$27 ->  | L15: ='Línea Base y beneficios pro (3)'!$F$27 ->  | M15: ='Línea Base y beneficios pro (3)'!$F$27 ->  | N15: ='Línea Base y beneficios pro (3)'!$F$27 ->  | O15: ='Línea Base y beneficios pro (3)'!$F$27 ->  | P15: ='Línea Base y beneficios pro (3)'!$F$27 ->  | Q15: =SUM(Tabla102932[[#This Row],[Mes 1]:[Mes 12]]) -> 0 | R15: =AVERAGE(Tabla102932[[#This Row],[Mes 1]:[Mes 12]]) -> 
D16: Resultado consumo o generación | Q16: =SUM(Tabla102932[[#This Row],[Mes 1]:[Mes 12]]) -> 0 | R16: =AVERAGE(Tabla102932[[#This Row],[Mes 1]:[Mes 12]]) -> 
D17: Beneficio Ambiental | E17: =IFERROR(IF($D$11="Uso eficiente de residuos orgánicos",IF(OR('Línea Base y beneficios pro (3)'!$R$15="",E16=""),"",E16-'Línea Base y beneficios pro (3)'!$R$15),IF($D$11="Uso eficiente de residuos aprovechables",IF(OR('Línea Base y beneficios pro (3)'!$R$15="",E16=""),"",E16-'Línea Base y beneficios pro (3)'!$R$15),IF(OR('Línea Base y beneficios pro (3)'!$R$15="",E16=""),"",'Línea Base y beneficios pro (3)'!$R$15-E16))),"") ->  | F17: =IFERROR(IF($D$11="Uso eficiente de residuos orgánicos",IF(OR('Línea Base y beneficios pro (3)'!$R$15="",F16=""),"",F16-'Línea Base y beneficios pro (3)'!$R$15),IF($D$11="Uso eficiente de residuos aprovechables",IF(OR('Línea Base y beneficios pro (3)'!$R$15="",F16=""),"",F16-'Línea Base y beneficios pro (3)'!$R$15),IF(OR('Línea Base y beneficios pro (3)'!$R$15="",F16=""),"",'Línea Base y beneficios pro (3)'!$R$15-F16))),"") ->  | G17: =IFERROR(IF($D$11="Uso eficiente de residuos orgánicos",IF(OR('Línea Base y beneficios pro (3)'!$R$15="",G16=""),"",G16-'Línea Base y beneficios pro (3)'!$R$15),IF($D$11="Uso eficiente de residuos aprovechables",IF(OR('Línea Base y beneficios pro (3)'!$R$15="",G16=""),"",G16-'Línea Base y beneficios pro (3)'!$R$15),IF(OR('Línea Base y beneficios pro (3)'!$R$15="",G16=""),"",'Línea Base y beneficios pro (3)'!$R$15-G16))),"") ->  | H17: =IFERROR(IF($D$11="Uso eficiente de residuos orgánicos",IF(OR('Línea Base y beneficios pro (3)'!$R$15="",H16=""),"",H16-'Línea Base y beneficios pro (3)'!$R$15),IF($D$11="Uso eficiente de residuos aprovechables",IF(OR('Línea Base y beneficios pro (3)'!$R$15="",H16=""),"",H16-'Línea Base y beneficios pro (3)'!$R$15),IF(OR('Línea Base y beneficios pro (3)'!$R$15="",H16=""),"",'Línea Base y beneficios pro (3)'!$R$15-H16))),"") ->  | I17: =IFERROR(IF($D$11="Uso eficiente de residuos orgánicos",IF(OR('Línea Base y beneficios pro (3)'!$R$15="",I16=""),"",I16-'Línea Base y beneficios pro (3)'!$R$15),IF($D$11="Uso eficiente de residuos aprovechables",IF(OR('Línea Base y beneficios pro (3)'!$R$15="",I16=""),"",I16-'Línea Base y beneficios pro (3)'!$R$15),IF(OR('Línea Base y beneficios pro (3)'!$R$15="",I16=""),"",'Línea Base y beneficios pro (3)'!$R$15-I16))),"") ->  | J17: =IFERROR(IF($D$11="Uso eficiente de residuos orgánicos",IF(OR('Línea Base y beneficios pro (3)'!$R$15="",J16=""),"",J16-'Línea Base y beneficios pro (3)'!$R$15),IF($D$11="Uso eficiente de residuos aprovechables",IF(OR('Línea Base y beneficios pro (3)'!$R$15="",J16=""),"",J16-'Línea Base y beneficios pro (3)'!$R$15),IF(OR('Línea Base y beneficios pro (3)'!$R$15="",J16=""),"",'Línea Base y beneficios pro (3)'!$R$15-J16))),"") ->  | K17: =IFERROR(IF($D$11="Uso eficiente de residuos orgánicos",IF(OR('Línea Base y beneficios pro (3)'!$R$15="",K16=""),"",K16-'Línea Base y beneficios pro (3)'!$R$15),IF($D$11="Uso eficiente de residuos aprovechables",IF(OR('Línea Base y beneficios pro (3)'!$R$15="",K16=""),"",K16-'Línea Base y beneficios pro (3)'!$R$15),IF(OR('Línea Base y beneficios pro (3)'!$R$15="",K16=""),"",'Línea Base y beneficios pro (3)'!$R$15-K16))),"") ->  | L17: =IFERROR(IF($D$11="Uso eficiente de residuos orgánicos",IF(OR('Línea Base y beneficios pro (3)'!$R$15="",L16=""),"",L16-'Línea Base y beneficios pro (3)'!$R$15),IF($D$11="Uso eficiente de residuos aprovechables",IF(OR('Línea Base y beneficios pro (3)'!$R$15="",L16=""),"",L16-'Línea Base y beneficios pro (3)'!$R$15),IF(OR('Línea Base y beneficios pro (3)'!$R$15="",L16=""),"",'Línea Base y beneficios pro (3)'!$R$15-L16))),"") ->  | M17: =IFERROR(IF($D$11="Uso eficiente de residuos orgánicos",IF(OR('Línea Base y beneficios pro (3)'!$R$15="",M16=""),"",M16-'Línea Base y beneficios pro (3)'!$R$15),IF($D$11="Uso eficiente de residuos aprovechables",IF(OR('Línea Base y beneficios pro (3)'!$R$15="",M16=""),"",M16-'Línea Base y beneficios pro (3)'!$R$15),IF(OR('Línea Base y beneficios pro (3)'!$R$15="",M16=""),"",'Línea Base y beneficios pro (3)'!$R$15-M16))),"") ->  | N17: =IFERROR(IF($D$11="Uso eficiente de residuos orgánicos",IF(OR('Línea Base y beneficios pro (3)'!$R$15="",N16=""),"",N16-'Línea Base y beneficios pro (3)'!$R$15),IF($D$11="Uso eficiente de residuos aprovechables",IF(OR('Línea Base y beneficios pro (3)'!$R$15="",N16=""),"",N16-'Línea Base y beneficios pro (3)'!$R$15),IF(OR('Línea Base y beneficios pro (3)'!$R$15="",N16=""),"",'Línea Base y beneficios pro (3)'!$R$15-N16))),"") ->  | O17: =IFERROR(IF($D$11="Uso eficiente de residuos orgánicos",IF(OR('Línea Base y beneficios pro (3)'!$R$15="",O16=""),"",O16-'Línea Base y beneficios pro (3)'!$R$15),IF($D$11="Uso eficiente de residuos aprovechables",IF(OR('Línea Base y beneficios pro (3)'!$R$15="",O16=""),"",O16-'Línea Base y beneficios pro (3)'!$R$15),IF(OR('Línea Base y beneficios pro (3)'!$R$15="",O16=""),"",'Línea Base y beneficios pro (3)'!$R$15-O16))),"") ->  | P17: =IFERROR(IF($D$11="Uso eficiente de residuos orgánicos",IF(OR('Línea Base y beneficios pro (3)'!$R$15="",P16=""),"",P16-'Línea Base y beneficios pro (3)'!$R$15),IF($D$11="Uso eficiente de residuos aprovechables",IF(OR('Línea Base y beneficios pro (3)'!$R$15="",P16=""),"",P16-'Línea Base y beneficios pro (3)'!$R$15),IF(OR('Línea Base y beneficios pro (3)'!$R$15="",P16=""),"",'Línea Base y beneficios pro (3)'!$R$15-P16))),"") ->  | Q17: =SUM(Tabla102932[[#This Row],[Mes 1]:[Mes 12]]) -> 0 | R17: =AVERAGE(Tabla102932[[#This Row],[Mes 1]:[Mes 12]]) -> 
D19: Meta promedio proyección ambiental | E19: =+'Línea Base y beneficios pro (3)'!$R$16 ->  | F19: =+'Línea Base y beneficios pro (3)'!$R$16 ->  | G19: =+'Línea Base y beneficios pro (3)'!$R$16 ->  | H19: =+'Línea Base y beneficios pro (3)'!$R$16 ->  | I19: =+'Línea Base y beneficios pro (3)'!$R$16 ->  | J19: =+'Línea Base y beneficios pro (3)'!$R$16 ->  | K19: =+'Línea Base y beneficios pro (3)'!$R$16 ->  | L19: =+'Línea Base y beneficios pro (3)'!$R$16 ->  | M19: =+'Línea Base y beneficios pro (3)'!$R$16 ->  | N19: =+'Línea Base y beneficios pro (3)'!$R$16 ->  | O19: =+'Línea Base y beneficios pro (3)'!$R$16 ->  | P19: =+'Línea Base y beneficios pro (3)'!$R$16 -> 
D21: Resultados concluyentes del proyecto
D23: % de cumplimiento promedio meta | E23: % de mejoramiento promedio
D24: =$R$17*1/$R$15 ->  | E24: =$R$17*1/'Línea Base y beneficios pro (3)'!$R$15 -> 
D28: Componente económico
D30: Económico | E30: Mes 1 | F30: Mes 2 | G30: Mes 3 | H30: Mes 4 | I30: Mes 5 | J30: Mes 6 | K30: Mes 7 | L30: Mes 8 | M30: Mes 9 | N30: Mes 10 | O30: Mes 11 | P30: Mes 12 | Q30: Total | R30: Promedio
D31: Meta | E31: ='Línea Base y beneficios pro (3)'!$F$28 -> 0 | F31: ='Línea Base y beneficios pro (3)'!$F$28 -> 0 | G31: ='Línea Base y beneficios pro (3)'!$F$28 -> 0 | H31: ='Línea Base y beneficios pro (3)'!$F$28 -> 0 | I31: ='Línea Base y beneficios pro (3)'!$F$28 -> 0 | J31: ='Línea Base y beneficios pro (3)'!$F$28 -> 0 | K31: ='Línea Base y beneficios pro (3)'!$F$28 -> 0 | L31: ='Línea Base y beneficios pro (3)'!$F$28 -> 0 | M31: ='Línea Base y beneficios pro (3)'!$F$28 -> 0 | N31: ='Línea Base y beneficios pro (3)'!$F$28 -> 0 | O31: ='Línea Base y beneficios pro (3)'!$F$28 -> 0 | P31: ='Línea Base y beneficios pro (3)'!$F$28 -> 0 | Q31: =SUM(Tabla4796132831[[#This Row],[Mes 1]:[Mes 12]]) -> 0 | R31: =AVERAGE(Tabla4796132831[[#This Row],[Mes 1]:[Mes 12]]) -> 
D32: Resultado económico | Q32: =SUM(Tabla4796132831[[#This Row],[Mes 1]:[Mes 12]]) -> 0 | R32: =AVERAGE(Tabla4796132831[[#This Row],[Mes 1]:[Mes 12]]) -> 
D33: Beneficio económico | E33: =IFERROR(IF($D$11="Uso eficiente de residuos orgánicos",IF(OR('Línea Base y beneficios pro (3)'!$R$15="",E32=""),"",E32-'Línea Base y beneficios pro (3)'!$R$15),IF($D$11="Uso eficiente de residuos aprovechables",IF(OR('Línea Base y beneficios pro (3)'!$R$15="",E32=""),"",E32-'Línea Base y beneficios pro (3)'!$R$15),IF(OR('Línea Base y beneficios pro (3)'!$R$15="",E32=""),"",'Línea Base y beneficios pro (3)'!$R$15-E32))),"") ->  | F33: =IFERROR(IF($D$11="Uso eficiente de residuos orgánicos",IF(OR('Línea Base y beneficios pro (3)'!$R$15="",F32=""),"",F32-'Línea Base y beneficios pro (3)'!$R$15),IF($D$11="Uso eficiente de residuos aprovechables",IF(OR('Línea Base y beneficios pro (3)'!$R$15="",F32=""),"",F32-'Línea Base y beneficios pro (3)'!$R$15),IF(OR('Línea Base y beneficios pro (3)'!$R$15="",F32=""),"",'Línea Base y beneficios pro (3)'!$R$15-F32))),"") ->  | G33: =IFERROR(IF($D$11="Uso eficiente de residuos orgánicos",IF(OR('Línea Base y beneficios pro (3)'!$R$15="",G32=""),"",G32-'Línea Base y beneficios pro (3)'!$R$15),IF($D$11="Uso eficiente de residuos aprovechables",IF(OR('Línea Base y beneficios pro (3)'!$R$15="",G32=""),"",G32-'Línea Base y beneficios pro (3)'!$R$15),IF(OR('Línea Base y beneficios pro (3)'!$R$15="",G32=""),"",'Línea Base y beneficios pro (3)'!$R$15-G32))),"") ->  | H33: =IFERROR(IF($D$11="Uso eficiente de residuos orgánicos",IF(OR('Línea Base y beneficios pro (3)'!$R$15="",H32=""),"",H32-'Línea Base y beneficios pro (3)'!$R$15),IF($D$11="Uso eficiente de residuos aprovechables",IF(OR('Línea Base y beneficios pro (3)'!$R$15="",H32=""),"",H32-'Línea Base y beneficios pro (3)'!$R$15),IF(OR('Línea Base y beneficios pro (3)'!$R$15="",H32=""),"",'Línea Base y beneficios pro (3)'!$R$15-H32))),"") ->  | I33: =IFERROR(IF($D$11="Uso eficiente de residuos orgánicos",IF(OR('Línea Base y beneficios pro (3)'!$R$15="",I32=""),"",I32-'Línea Base y beneficios pro (3)'!$R$15),IF($D$11="Uso eficiente de residuos aprovechables",IF(OR('Línea Base y beneficios pro (3)'!$R$15="",I32=""),"",I32-'Línea Base y beneficios pro (3)'!$R$15),IF(OR('Línea Base y beneficios pro (3)'!$R$15="",I32=""),"",'Línea Base y beneficios pro (3)'!$R$15-I32))),"") ->  | J33: =IFERROR(IF($D$11="Uso eficiente de residuos orgánicos",IF(OR('Línea Base y beneficios pro (3)'!$R$15="",J32=""),"",J32-'Línea Base y beneficios pro (3)'!$R$15),IF($D$11="Uso eficiente de residuos aprovechables",IF(OR('Línea Base y beneficios pro (3)'!$R$15="",J32=""),"",J32-'Línea Base y beneficios pro (3)'!$R$15),IF(OR('Línea Base y beneficios pro (3)'!$R$15="",J32=""),"",'Línea Base y beneficios pro (3)'!$R$15-J32))),"") ->  | K33: =IFERROR(IF($D$11="Uso eficiente de residuos orgánicos",IF(OR('Línea Base y beneficios pro (3)'!$R$15="",K32=""),"",K32-'Línea Base y beneficios pro (3)'!$R$15),IF($D$11="Uso eficiente de residuos aprovechables",IF(OR('Línea Base y beneficios pro (3)'!$R$15="",K32=""),"",K32-'Línea Base y beneficios pro (3)'!$R$15),IF(OR('Línea Base y beneficios pro (3)'!$R$15="",K32=""),"",'Línea Base y beneficios pro (3)'!$R$15-K32))),"") ->  | L33: =IFERROR(IF($D$11="Uso eficiente de residuos orgánicos",IF(OR('Línea Base y beneficios pro (3)'!$R$15="",L32=""),"",L32-'Línea Base y beneficios pro (3)'!$R$15),IF($D$11="Uso eficiente de residuos aprovechables",IF(OR('Línea Base y beneficios pro (3)'!$R$15="",L32=""),"",L32-'Línea Base y beneficios pro (3)'!$R$15),IF(OR('Línea Base y beneficios pro (3)'!$R$15="",L32=""),"",'Línea Base y beneficios pro (3)'!$R$15-L32))),"") ->  | M33: =IFERROR(IF($D$11="Uso eficiente de residuos orgánicos",IF(OR('Línea Base y beneficios pro (3)'!$R$15="",M32=""),"",M32-'Línea Base y beneficios pro (3)'!$R$15),IF($D$11="Uso eficiente de residuos aprovechables",IF(OR('Línea Base y beneficios pro (3)'!$R$15="",M32=""),"",M32-'Línea Base y beneficios pro (3)'!$R$15),IF(OR('Línea Base y beneficios pro (3)'!$R$15="",M32=""),"",'Línea Base y beneficios pro (3)'!$R$15-M32))),"") ->  | N33: =IFERROR(IF($D$11="Uso eficiente de residuos orgánicos",IF(OR('Línea Base y beneficios pro (3)'!$R$15="",N32=""),"",N32-'Línea Base y beneficios pro (3)'!$R$15),IF($D$11="Uso eficiente de residuos aprovechables",IF(OR('Línea Base y beneficios pro (3)'!$R$15="",N32=""),"",N32-'Línea Base y beneficios pro (3)'!$R$15),IF(OR('Línea Base y beneficios pro (3)'!$R$15="",N32=""),"",'Línea Base y beneficios pro (3)'!$R$15-N32))),"") ->  | O33: =IFERROR(IF($D$11="Uso eficiente de residuos orgánicos",IF(OR('Línea Base y beneficios pro (3)'!$R$15="",O32=""),"",O32-'Línea Base y beneficios pro (3)'!$R$15),IF($D$11="Uso eficiente de residuos aprovechables",IF(OR('Línea Base y beneficios pro (3)'!$R$15="",O32=""),"",O32-'Línea Base y beneficios pro (3)'!$R$15),IF(OR('Línea Base y beneficios pro (3)'!$R$15="",O32=""),"",'Línea Base y beneficios pro (3)'!$R$15-O32))),"") ->  | P33: =IFERROR(IF($D$11="Uso eficiente de residuos orgánicos",IF(OR('Línea Base y beneficios pro (3)'!$R$15="",P32=""),"",P32-'Línea Base y beneficios pro (3)'!$R$15),IF($D$11="Uso eficiente de residuos aprovechables",IF(OR('Línea Base y beneficios pro (3)'!$R$15="",P32=""),"",P32-'Línea Base y beneficios pro (3)'!$R$15),IF(OR('Línea Base y beneficios pro (3)'!$R$15="",P32=""),"",'Línea Base y beneficios pro (3)'!$R$15-P32))),"") ->  | Q33: =SUM(Tabla4796132831[[#This Row],[Mes 1]:[Mes 12]]) -> 0 | R33: =AVERAGE(Tabla4796132831[[#This Row],[Mes 1]:[Mes 12]]) -> 
D47: Componente Ambiental | L47: Componente Económico
D49: Componente ambiental, la línea base inicial indicaba un consumo promedio mensual de XXXXX. Tras implementar las medidas propuestas, se alcanzó una reducción real de XXXX mensuales en promedio, representando un % de disminución respecto a la línea base. | L49: Componente económico, se proyectó un ahorro de $XXX en costos asociados al consumo o generación de XXXX. Al cierre, los beneficios obtenidos alcanzaron los $xxx, esto representa un cumplimiento del xx% respecto a las expectativas económicas del período.
D56: EVIDENCIAS DE IMPLEMENTACIÓN
D59: Cálculos y resultados obtenidos
D74: Fotografías y evidencias de implementación | V74: OBSERVACIONES TUTOR
